fUSD/lending_fUSD_20250421
["ID","MTS","AMOUNT","RATE_DAILY","PERIOD"]
[358492507,1745209845108,-500.0,0.00063013,120]
[358492508,1745209845118,-210.32957908,0.00063013,120]
[358492509,1745209845127,-500.0,0.00063013,120]
[358492510,1745209845136,-500.0,0.00063013,120]
[358492511,1745209845145,-500.0,0.00063013,120]
[358492512,1745209845154,-500.0,0.00063013,120]
[358492513,1745209845164,-500.0,0.00063013,120]
[358492514,1745209845174,-521.69765095,0.00063013,120]
[358492515,1745209845183,-514.12977325,0.00063013,120]
[358492516,1745209845193,-429.62605538,0.00063013,120]
[358492517,1745209845202,-519.32851682,0.00063013,120]
[358492518,1745209845212,-540.30237646,0.00063013,120]
[358492519,1745209845221,-205.85199651,0.00063013,120]
[358492520,1745209845231,-500.0,0.00063013,120]
[358492521,1745209845240,-512.62408005,0.00063013,120]
[358492522,1745209845249,-500.0,0.00063013,120]
[358492523,1745209845259,-586.10973081,0.00063013,120]
[358492524,1745209845269,-151.0,0.00063013,120]
[358492525,1745209845279,-151.0,0.00063013,120]
[358492526,1745209845289,-560.37630026,0.00063013,120]
[358492527,1745209845298,-629.84781352,0.00063013,120]
[358492528,1745209845308,-500.0,0.00063013,120]
[358492529,1745209845318,-625.50746254,0.00063013,120]
[358492530,1745209845327,-500.0,0.00063013,120]
[358492531,1745209845337,-500.0,0.00063013,120]
[358492532,1745209845347,-1040.07,0.00063013,120]
[358492533,1745209845356,-193.12669195,0.00063013,120]
[358492534,1745209845366,-543.85444649,0.00063013,120]
[358492535,1745209845376,-500.0,0.00063013,120]
[358492536,1745209845385,-500.0,0.00063013,120]
[358492537,1745209845395,-544.79583879,0.00063013,120]
[358492538,1745209845405,-551.57591507,0.00063013,120]
[358492539,1745209845414,-500.0,0.00063013,120]
[358492540,1745209845423,-523.67123264,0.00063013,120]
[358492541,1745209845433,-513.00526959,0.00063013,120]
[358492542,1745209845443,-511.33194378,0.00063013,120]
[358492543,1745209845452,-544.42752104,0.00063013,120]
[358492544,1745209845462,-683.2,0.00063013,120]
[358492545,1745209845471,-512.90726598,0.00063013,120]
[358492546,1745209845481,-528.0446655,0.00063013,120]
[358492547,1745209845491,-549.39229299,0.00063013,120]
[358492548,1745209845500,-500.0,0.00063013,120]
[358492549,1745209845510,-500.0,0.00063013,120]
[358492550,1745209845519,-500.0,0.00063013,120]
[358492551,1745209845529,-500.0,0.00063013,120]
[358492552,1745209845539,-500.0,0.00063013,120]
[358492553,1745209845548,-500.0,0.00063013,120]
[358492554,1745209845558,-500.0,0.00063013,120]
[358492555,1745209845567,-500.0,0.00063013,120]
[358492556,1745209845576,-525.51196505,0.00063013,120]
[358492557,1745209845586,-500.0,0.00063013,120]
[358492558,1745209845596,-509.11085807,0.00063013,120]
[358492559,1745209845605,-501.72196206,0.00063013,120]
[358492560,1745209845615,-603.15575965,0.00063013,120]
[358492561,1745209845624,-513.65292952,0.00063013,120]
[358492562,1745209845633,-590.67732532,0.00063013,120]
[358492563,1745209845643,-500.0,0.00063013,120]
[358492564,1745209845651,-500.0,0.00063013,120]
[358492565,1745209845661,-555.60651194,0.00063013,120]
[358492566,1745209845671,-500.0,0.00063013,120]
[358492567,1745209845680,-500.0,0.00063013,120]
[358492568,1745209845689,-522.83916211,0.00063013,120]
[358492569,1745209845698,-500.0,0.00063013,120]
[358492570,1745209845709,-500.0,0.00063013,2]
[358492571,1745209845718,-500.0,0.00063013,120]
[358492572,1745209845727,-516.37593366,0.00063013,120]
[358492573,1745209845737,-529.79302844,0.00063013,120]
[358492574,1745209845746,-500.0,0.00063013,120]
[358492575,1745209845755,-500.0,0.00063013,120]
[358492576,1745209845764,-508.29858572,0.00063013,2]
[358492577,1745209845774,-500.0,0.00063013,120]
[358492578,1745209845783,-400.89218566,0.00063013,120]
[358492579,1745209845792,-500.0,0.00063013,120]
[358492580,1745209845801,-500.0,0.00063013,120]
[358492581,1745209845810,-528.7029028,0.00063013,120]
[358492582,1745209845819,-500.0,0.00063013,120]
[358492583,1745209845828,-500.0,0.00063013,120]
[358492584,1745209845838,-500.0,0.00063013,2]
[358492585,1745209845847,-584.11000833,0.00063013,120]
[358492586,1745209845856,-553.98824571,0.00063013,120]
[358492587,1745209845866,-502.30352225,0.00063013,120]
[358492588,1745209845875,-500.0,0.00063013,120]
[358492589,1745209845884,-1000.0,0.00063013,120]
[358492590,1745209845893,-500.0,0.00063013,120]
[358492591,1745209845902,-500.0,0.00063013,120]
[358492592,1745209845912,-500.0,0.00063013,120]
[358492593,1745209845921,-500.0,0.00063013,120]
[358492594,1745209845931,-500.0,0.00063013,120]
[358492595,1745209845940,-500.0,0.00063013,120]
[358492596,1745209845950,-500.0,0.00063013,120]
[358492597,1745209845959,-500.0,0.00063013,120]
[358492598,1745209845969,-500.0,0.00063013,120]
[358492599,1745209845978,-500.0,0.00063013,120]
[358492600,1745209845987,-500.0,0.00063013,120]
[358492601,1745209846000,-500.0,0.00063013,120]
[358492602,1745209846009,-500.0,0.00063013,120]
[358492603,1745209846018,-515.84847871,0.00063013,120]
[358492604,1745209846027,-500.0,0.00063013,120]
[358492605,1745209846036,-334.80534902,0.00063013,120]
[358492606,1745209846046,-551.29144262,0.00063013,120]
[358492607,1745209846055,-545.55730455,0.00063013,120]
[358492608,1745209846064,-500.0,0.00063013,120]
[358492609,1745209846074,-500.0,0.00063013,120]
[358492610,1745209846083,-523.54175591,0.00063013,120]
[358492611,1745209846092,-548.37548356,0.00063013,120]
[358492613,1745209846101,-500.0,0.00063013,120]
[358492614,1745209846110,-517.38463725,0.00063013,120]
[358492616,1745209846120,-195.45733755,0.00063013,120]
[358492617,1745209846129,-500.0,0.00063013,120]
[358492618,1745209846138,-500.0,0.00063013,30]
[358492619,1745209846148,-500.0,0.00063013,120]
[358492620,1745209846157,-500.0,0.00063013,120]
[358492623,1745209846167,-684.87,0.00063013,120]
[358492625,1745209846176,-500.0,0.00063013,120]
[358492627,1745209846186,-531.79381831,0.00063013,120]
[358492629,1745209846195,-500.0,0.00063013,120]
[358492630,1745209846204,-500.0,0.00063013,120]
[358492632,1745209846213,-270.19695642,0.00063013,120]
[358492633,1745209846223,-500.0,0.00063013,120]
[358492634,1745209846232,-500.0,0.00063013,120]
[358492635,1745209846241,-500.0,0.00063013,120]
[358492636,1745209846254,-500.0,0.00063013,120]
[358492637,1745209846263,-500.0,0.00063013,120]
[358492638,1745209846272,-1500.0,0.00063013,120]
[358492639,1745209846283,-500.0,0.00063013,120]
[358492640,1745209846292,-500.0,0.00063013,120]
[358492641,1745209846302,-544.21315248,0.00063013,120]
[358492642,1745209846311,-500.0,0.00063013,120]
[358492643,1745209846321,-500.0,0.00063013,120]
[358492644,1745209846331,-500.0,0.00063013,120]
[358492645,1745209846340,-151.0,0.00063013,120]
[358492646,1745209846350,-500.0,0.00063013,120]
[358492647,1745209846360,-500.0,0.00063013,120]
[358492648,1745209846370,-500.0,0.00063013,120]
[358492649,1745209846379,-538.61071507,0.00063013,120]
[358492650,1745209846389,-1151.8,0.00063013,120]
[358492651,1745209846400,-500.0,0.00063013,120]
[358492652,1745209846409,-500.0,0.00063013,120]
[358492653,1745209846419,-500.0,0.00063013,120]
[358492654,1745209846428,-500.0,0.00063013,120]
[358492655,1745209846437,-500.0,0.00063013,120]
[358492656,1745209846447,-500.0,0.00063013,120]
[358492657,1745209846456,-537.17308493,0.00063013,120]
[358492658,1745209846466,-576.50626452,0.00063013,120]
[358492659,1745209846475,-522.94760242,0.00063013,120]
[358492660,1745209846484,-500.0,0.00063013,120]
[358492661,1745209846494,-500.0,0.00063013,120]
[358492662,1745209846503,-500.0,0.00063013,120]
[358492663,1745209846513,-529.17004573,0.00063013,120]
[358492664,1745209846523,-500.0,0.00063013,120]
[358492665,1745209846532,-516.14486189,0.00063013,120]
[358492666,1745209846543,-2160.04,0.00063013,120]
[358492667,1745209846553,-500.0,0.00063013,120]
[358492668,1745209846562,-999.0,0.00063013,120]
[358492669,1745209846573,-275.06719502,0.00063013,120]
[358492670,1745209846582,-500.0,0.00063013,120]
[358492671,1745209846591,-500.0,0.00063013,120]
[358492672,1745209846601,-500.0,0.00063013,120]
[358492673,1745209846612,-574.47228221,0.00063013,120]
[358492674,1745209846621,-500.0,0.00063013,120]
[358492675,1745209846630,-500.0,0.00063013,120]
[358492676,1745209846640,-962.23,0.00063013,120]
[358492677,1745209846649,-500.0,0.00063013,120]
[358492678,1745209846659,-773.14,0.00063013,120]
[358492679,1745209846669,-500.0,0.00063013,120]
[358492680,1745209846678,-543.22259878,0.00063013,120]
[358492681,1745209846689,-552.17207215,0.00063013,120]
[358492682,1745209846699,-500.0,0.00063013,120]
[358492683,1745209846710,-500.0,0.00063013,120]
[358492684,1745209846720,-646.47631652,0.00063013,120]
[358492685,1745209846729,-570.41510949,0.00063013,120]
[358492686,1745209846740,-533.65285747,0.00063013,120]
[358492687,1745209846750,-500.0,0.00063013,120]
[358492689,1745209846759,-500.0,0.00063013,120]
[358492690,1745209846769,-500.0,0.00063013,120]
[358492691,1745209846778,-528.822614,0.00063013,120]
[358492692,1745209846787,-500.0,0.00063013,120]
[358492693,1745209846797,-500.0,0.00063013,120]
[358492694,1745209846806,-258.88411518,0.00063013,120]
[358492696,1745209846816,-500.0,0.00063013,120]
[358492698,1745209846825,-500.0,0.00063013,120]
[358492699,1745209846834,-906.87,0.00063013,120]
[358492700,1745209846844,-500.0,0.00063013,120]
[358492701,1745209846853,-567.84039911,0.00063013,120]
[358492702,1745209846863,-539.75018618,0.00063013,120]
[358492703,1745209846872,-500.0,0.00063013,120]
[358492704,1745209846881,-500.0,0.00063013,120]
[358492705,1745209846891,-578.63,0.00063013,120]
[358492706,1745209846901,-500.0,0.00063013,120]
[358492707,1745209846910,-500.0,0.00063013,120]
[358492708,1745209846919,-500.0,0.00063013,120]
[358492709,1745209846928,-500.0,0.00063013,120]
[358492710,1745209846938,-500.0,0.00063013,120]
[358492711,1745209846947,-500.0,0.00063013,120]
[358492712,1745209846959,-500.0,0.00063013,120]
[358492713,1745209846968,-509.23025477,0.00063013,120]
[358492714,1745209846978,-500.0,0.00063013,120]
[358492715,1745209846988,-500.0,0.00063013,120]
[358492716,1745209847001,-500.0,0.00063013,120]
[358492717,1745209847010,-502.3897624,0.00063013,120]
[358492718,1745209847020,-500.0,0.00063013,120]
[358492719,1745209847029,-516.33079572,0.00063013,120]
[358492720,1745209847039,-500.0,0.00063013,120]
[358492721,1745209847049,-508.17724565,0.00063013,30]
[358492722,1745209847059,-500.0,0.00063013,120]
[358492723,1745209847069,-500.0,0.00063013,120]
[358492724,1745209847079,-500.0,0.00063013,120]
[358492725,1745209847088,-500.0,0.00063013,120]
[358492726,1745209847098,-500.0,0.00063013,120]
[358492727,1745209847207,-500.0,0.00063013,120]
[358492728,1745209847218,-151.0,0.00063013,120]
[358492729,1745209847227,-500.0,0.00063013,120]
[358492730,1745209847238,-500.0,0.00063013,120]
[358492731,1745209847247,-500.0,0.00063013,120]
[358492732,1745209847257,-500.0,0.00063013,120]
[358492733,1745209847267,-500.0,0.00063013,120]
[358492734,1745209847277,-500.0,0.00063013,120]
[358492735,1745209847286,-210.97333691,0.00063013,120]
[358492736,1745209847296,-500.0,0.00063013,120]
[358492737,1745209847306,-500.0,0.00063013,120]
[358492738,1745209847315,-539.17818239,0.00063013,120]
[358492739,1745209847325,-500.0,0.00063013,120]
[358492740,1745209847335,-575.4548211,0.00063013,120]
[358492741,1745209847345,-535.34739309,0.00063013,120]
[358492742,1745209847354,-500.0,0.00063013,120]
[358492743,1745209847364,-300.0,0.00063013,120]
[358492744,1745209847374,-500.0,0.00063013,120]
[358492745,1745209847384,-546.73523348,0.00063013,120]
[358492746,1745209847394,-500.0,0.00063013,120]
[358492747,1745209847403,-509.49946541,0.00063013,120]
[358492748,1745209847413,-500.0,0.00063013,120]
[358492749,1745209847423,-500.0,0.00063013,120]
[358492750,1745209847432,-500.0,0.00063013,120]
[358492751,1745209847442,-151.0,0.00063013,120]
[358492752,1745209847451,-151.0,0.00063013,120]
[358492753,1745209847462,-538.49109632,0.00063013,120]
[358492754,1745209847472,-500.0,0.00063013,120]
[358492755,1745209847482,-500.0,0.00063013,120]
[358492756,1745209847491,-781.23,0.00063013,120]
[358492757,1745209847501,-500.0,0.00063013,120]
[358492758,1745209847511,-154.902933,0.00063013,120]
[358492759,1745209847520,-500.0,0.00063013,120]
[358492760,1745209847529,-500.0,0.00063013,120]
[358492761,1745209847539,-500.0,0.00063013,120]
[358492762,1745209847549,-500.0,0.00063013,120]
[358492763,1745209847559,-500.0,0.00063013,120]
[358492764,1745209847568,-500.0,0.00063013,120]
[358492765,1745209847577,-507.21837456,0.00063013,120]
[358492766,1745209847587,-500.0,0.00063013,120]
[358492767,1745209847597,-500.0,0.00063013,120]
[358492768,1745209847606,-500.0,0.00063013,120]
[358492769,1745209847615,-500.0,0.00063013,120]
[358492770,1745209847624,-500.0,0.00063013,120]
[358492771,1745209847634,-500.0,0.00063013,120]
[358492772,1745209847643,-500.0,0.00063013,120]
[358492773,1745209847652,-525.31475404,0.00063013,120]
[358492774,1745209847661,-500.0,0.00063013,120]
[358492775,1745209847670,-500.0,0.00063013,120]
[358492776,1745209847679,-500.0,0.00063013,120]
[358492777,1745209847687,-500.0,0.00063013,120]
[358492778,1745209847696,-500.0,0.00063013,120]
[358492779,1745209847705,-500.0,0.00063013,120]
[358492780,1745209847715,-500.0,0.00063013,120]
[358492781,1745209847723,-500.0,0.00063013,120]
[358492782,1745209847732,-160.071736,0.00063013,120]
[358492783,1745209847741,-500.0,0.00063013,120]
[358492784,1745209847750,-588.5342434,0.00063013,120]
[358492785,1745209847759,-500.0,0.00063013,120]
[358492786,1745209847768,-500.0,0.00063013,120]
[358492787,1745209847776,-500.0,0.00063013,120]
[358492788,1745209847785,-530.48317193,0.00063013,120]
[358492789,1745209847794,-500.0,0.00063013,120]
[358492790,1745209847803,-500.0,0.00063013,120]
[358492791,1745209847812,-500.0,0.00063013,120]
[358492792,1745209847821,-500.0,0.00063013,120]
[358492793,1745209847830,-500.0,0.00063013,120]
[358492794,1745209847839,-500.0,0.00063013,120]
[358492795,1745209847848,-500.0,0.00063013,120]
[358492796,1745209847857,-500.0,0.00063013,120]
[358492797,1745209847867,-500.0,0.00063013,120]
[358492798,1745209847876,-500.0,0.00063013,120]
[358492799,1745209847886,-500.0,0.00063013,120]
[358492800,1745209847895,-500.0,0.00063013,120]
[358492801,1745209847904,-500.0,0.00063013,120]
[358492802,1745209847914,-500.0,0.00063013,120]
[358492803,1745209847923,-566.30084486,0.00063013,120]
[358492804,1745209847932,-500.0,0.00063013,120]
[358492805,1745209847942,-500.0,0.00063013,10]
[358492806,1745209847951,-500.0,0.00063013,120]
[358492807,1745209847962,-500.0,0.00063013,120]
[358492808,1745209847971,-508.35,0.00063013,120]
[358492809,1745209847980,-500.0,0.00063013,120]
[358492810,1745209847989,-500.0,0.00063013,120]
[358492811,1745209848000,-500.0,0.00063013,120]
[358492812,1745209848009,-500.0,0.00063013,120]
[358492813,1745209848019,-500.0,0.00063013,120]
[358492814,1745209848028,-500.0,0.00063013,120]
[358492815,1745209848038,-500.0,0.00063013,120]
[358492816,1745209848047,-508.62177945,0.00063013,120]
[358492817,1745209848057,-602.57910325,0.00063013,120]
[358492818,1745209848066,-500.0,0.00063013,120]
[358492819,1745209848076,-500.0,0.00063013,120]
[358492820,1745209848086,-500.0,0.00063013,120]
[358492821,1745209848096,-500.0,0.00063013,120]
[358492822,1745209848105,-540.16280134,0.00063013,120]
[358492823,1745209848115,-500.0,0.00063013,120]
[358492824,1745209848124,-500.0,0.00063013,120]
[358492825,1745209848133,-500.0,0.00063013,120]
[358492826,1745209848142,-500.0,0.00063013,120]
[358492827,1745209848151,-500.0,0.00063013,120]
[358492828,1745209848161,-500.0,0.00063013,20]
[358492829,1745209848172,-500.0,0.00063013,120]
[358492830,1745209848181,-521.14352456,0.00063013,120]
[358492831,1745209848192,-500.0,0.00063013,120]
[358492832,1745209848202,-511.82518281,0.00063013,120]
[358492833,1745209848212,-803.87,0.00063013,120]
[358492834,1745209848221,-500.0,0.00063013,120]
[358492835,1745209848231,-338.57329336,0.00063013,120]
[358492836,1745209848240,-500.0,0.00063013,120]
[358492837,1745209848249,-500.0,0.00063013,120]
[358492838,1745209848259,-555.47710427,0.00063013,120]
[358492839,1745209848268,-500.0,0.00063013,120]
[358492840,1745209848278,-514.73421349,0.00063013,120]
[358492841,1745209848288,-500.0,0.00063013,120]
[358492842,1745209848297,-500.0,0.00063013,120]
[358492843,1745209848306,-741.4,0.00063013,120]
[358492844,1745209848315,-547.99640149,0.00063013,120]
[358492845,1745209848325,-643.64329807,0.00063013,120]
[358492846,1745209848334,-500.0,0.00063013,120]
[358492847,1745209848343,-500.0,0.00063013,120]
[358492848,1745209848353,-500.0,0.00063013,120]
[358492849,1745209848362,-500.0,0.00063013,120]
[358492850,1745209848372,-500.0,0.00063013,120]
[358492851,1745209848382,-500.0,0.00063013,120]
[358492852,1745209848392,-500.0,0.00063013,120]
[358492853,1745209848402,-500.0,0.00063013,120]
[358492854,1745209848411,-500.0,0.00063013,120]
[358492855,1745209848420,-551.11582393,0.00063013,120]
[358492856,1745209848430,-151.0,0.00063013,120]
[358492857,1745209848440,-500.0,0.00063013,120]
[358492858,1745209848449,-203.46058736,0.00063013,120]
[358492859,1745209848459,-500.0,0.00063013,120]
[358492860,1745209848468,-500.0,0.00063013,120]
[358492861,1745209848478,-500.0,0.00063013,120]
[358492862,1745209848488,-500.0,0.00063013,12]
[358492863,1745209848497,-500.0,0.00063013,120]
[358492864,1745209848507,-500.0,0.00063013,120]
[358492865,1745209848516,-500.0,0.00063013,118]
[358492866,1745209848527,-500.0,0.00063013,120]
[358492867,1745209848536,-500.0,0.00063013,120]
[358492868,1745209848546,-815.95,0.00063013,120]
[358492869,1745209848556,-661.79,0.00063013,120]
[358492870,1745209848565,-500.0,0.00063013,120]
[358492871,1745209848575,-500.0,0.00063013,120]
[358492872,1745209848585,-500.0,0.00063013,120]
[358492873,1745209848595,-500.0,0.00063013,120]
[358492874,1745209848604,-500.0,0.00063013,120]
[358492875,1745209848613,-500.0,0.00063013,120]
[358492876,1745209848623,-706.36,0.00063013,120]
[358492877,1745209848632,-500.0,0.00063013,120]
[358492878,1745209848641,-547.09804411,0.00063013,120]
[358492879,1745209848650,-500.0,0.00063013,120]
[358492880,1745209848660,-500.0,0.00063013,14]
[358492881,1745209848670,-500.0,0.00063013,120]
[358492882,1745209848680,-587.10502433,0.00063013,120]
[358492883,1745209848689,-500.0,0.00063013,120]
[358492884,1745209848698,-500.0,0.00063013,120]
[358492885,1745209848707,-500.0,0.00063013,30]
[358492886,1745209848717,-500.0,0.00063013,120]
[358492887,1745209848726,-500.0,0.00063013,120]
[358492888,1745209848736,-500.0,0.00063013,120]
[358492889,1745209848746,-1690.23,0.00063013,120]
[358492890,1745209848755,-513.41541576,0.00063013,120]
[358492891,1745209848764,-500.0,0.00063013,120]
[358492892,1745209848774,-328.35306118,0.00063013,120]
[358492893,1745209848783,-640.8099035,0.00063013,120]
[358492894,1745209848792,-500.0,0.00063013,120]
[358492895,1745209848801,-500.0,0.00063013,120]
[358492896,1745209848811,-527.53391386,0.00063013,120]
[358492897,1745209848820,-548.26488094,0.00063013,120]
[358492898,1745209848829,-500.0,0.00063013,120]
[358492899,1745209848839,-500.0,0.00063013,120]
[358492900,1745209848848,-515.90655005,0.00063013,120]
[358492901,1745209848858,-151.0,0.00063013,120]
[358492902,1745209848867,-500.0,0.00063013,120]
[358492903,1745209848877,-500.0,0.00063013,120]
[358492904,1745209848886,-499.50801198,0.00063013,120]
[358492905,1745209848895,-348.86394823,0.00063013,120]
[358492906,1745209848904,-506.11782053,0.00063013,120]
[358492907,1745209848914,-500.0,0.00063013,120]
[358492908,1745209848923,-184.9874649,0.00063013,120]
[358492909,1745209848932,-500.0,0.00063013,120]
[358492910,1745209848941,-538.24802769,0.00063013,120]
[358492911,1745209848950,-787.95,0.00063013,120]
[358492912,1745209848959,-500.0,0.00063013,120]
[358492913,1745209848968,-500.0,0.00063013,120]
[358492914,1745209848977,-500.0,0.00063013,120]
[358492915,1745209848987,-500.0,0.00063013,120]
[358492916,1745209848997,-500.0,0.00063013,120]
[358492917,1745209849010,-365.61306793,0.00063013,120]
[358492918,1745209849019,-494.89802384,0.00063013,120]
[358492919,1745209849028,-208.18040093,0.00063013,120]
[358492920,1745209849038,-500.0,0.00063013,120]
[358492921,1745209849047,-500.0,0.00063013,120]
[358492922,1745209849058,-500.0,0.00063013,120]
[358492923,1745209849067,-500.0,0.00063013,120]
[358492924,1745209849078,-500.0,0.00063013,120]
[358492925,1745209849088,-550.48563296,0.00063013,120]
[358492926,1745209849098,-500.0,0.00063013,120]
[358492927,1745209849108,-500.0,0.00063013,120]
[358492928,1745209849117,-837.0,0.00063013,120]
[358492929,1745209849127,-502.04150899,0.00063013,120]
[358492930,1745209849136,-837.0,0.00063013,120]
[358492931,1745209849145,-837.0,0.00063013,120]
[358492932,1745209849154,-837.0,0.00063013,120]
[358492933,1745209849163,-837.0,0.00063013,120]
[358492934,1745209849172,-837.0,0.00063013,120]
[358492935,1745209849182,-500.0,0.00063013,120]
[358492936,1745209849191,-837.0,0.00063013,120]
[358492937,1745209849200,-837.0,0.00063013,120]
[358492938,1745209849210,-500.0,0.00063013,120]
[358492939,1745209849219,-500.0,0.00063013,120]
[358492940,1745209849229,-500.0,0.00063013,120]
[358492941,1745209849338,-500.0,0.00063013,120]
[358492942,1745209849348,-500.0,0.00063013,120]
[358492943,1745209849358,-500.0,0.00063013,120]
[358492944,1745209849367,-500.0,0.00063013,120]
[358492945,1745209849377,-1111.6,0.00063013,120]
[358492946,1745209849387,-500.0,0.00063013,120]
[358492947,1745209849396,-500.0,0.00063013,120]
[358492948,1745209849407,-500.0,0.00063013,120]
[358492949,1745209849417,-500.0,0.00063013,120]
[358492950,1745209849426,-500.0,0.00063013,120]
[358492951,1745209849436,-500.0,0.00063013,120]
[358492952,1745209849445,-500.0,0.00063013,120]
[358492953,1745209849455,-500.0,0.00063013,120]
[358492954,1745209849465,-500.0,0.00063013,120]
[358492955,1745209849475,-500.0,0.00063013,120]
[358492956,1745209849484,-500.0,0.00063013,120]
[358492957,1745209849493,-500.0,0.00063013,120]
[358492958,1745209849503,-561.61,0.00063013,120]
[358492959,1745209849512,-536.28680593,0.00063013,120]
[358492960,1745209849522,-321.77997201,0.00063013,120]
[358492961,1745209849531,-500.0,0.00063013,120]
[358492962,1745209849541,-500.0,0.00063013,120]
[358492963,1745209849550,-500.0,0.00063013,120]
[358492964,1745209849559,-500.0,0.00063013,120]
[358492965,1745209849569,-542.87896645,0.00063013,120]
[358492966,1745209849578,-500.0,0.00063013,120]
[358492967,1745209849588,-500.0,0.00063013,120]
[358492968,1745209849597,-500.0,0.00063013,120]
[358492969,1745209849607,-555.73,0.00063013,120]
[358492970,1745209849616,-500.0,0.00063013,120]
[358492971,1745209849626,-500.0,0.00063013,120]
[358492972,1745209849635,-508.97333548,0.00063013,120]
[358492973,1745209849645,-500.0,0.00063013,120]
[358492974,1745209849654,-729.9,0.00063013,120]
[358492975,1745209849663,-500.0,0.00063013,120]
[358492976,1745209849672,-1084.13,0.00063013,120]
[358492977,1745209849682,-500.0,0.00063013,8]
[358492978,1745209849691,-307.87901725,0.00063013,120]
[358492979,1745209849700,-579.60762912,0.00063013,120]
[358492980,1745209849709,-947.59,0.00063013,120]
[358492981,1745209849721,-523.38480097,0.00063013,120]
[358492982,1745209849730,-500.0,0.00063013,120]
[358492983,1745209849740,-532.26604069,0.00063013,120]
[358492984,1745209849749,-557.65,0.00063013,120]
[358492985,1745209849758,-501.82213806,0.00063013,120]
[358492986,1745209849767,-500.0,0.00063013,120]
[358492987,1745209849776,-574.76434348,0.00063013,120]
[358492988,1745209849786,-500.0,0.00063013,120]
[358492989,1745209849795,-2095.28,0.00063013,120]
[358492990,1745209849804,-570.0768427,0.00063013,120]
[358492991,1745209849814,-411.2321765,0.00063013,120]
[358492992,1745209849823,-500.0,0.00063013,120]
[358492993,1745209849832,-676.13,0.00063013,120]
[358492994,1745209849842,-500.0,0.00063013,120]
[358492995,1745209849851,-500.0,0.00063013,120]
[358492996,1745209849860,-500.0,0.00063013,120]
[358492997,1745209849870,-500.0,0.00063013,120]
[358492998,1745209849879,-500.0,0.00063013,120]
[358492999,1745209849887,-500.0,0.00063013,120]
[358493000,1745209849896,-240.6951948,0.00063013,120]
[358493001,1745209849906,-1000.0,0.00063013,120]
[358493002,1745209849915,-187.32987917,0.00063013,120]
[358493003,1745209849924,-500.0,0.00063013,120]
[358493004,1745209849933,-500.0,0.00063013,120]
[358493005,1745209849942,-500.0,0.00063013,120]
[358493006,1745209849951,-500.0,0.00063013,120]
[358493007,1745209849961,-500.0,0.00063013,120]
[358493008,1745209849971,-182.24609953,0.00063013,120]
[358493009,1745209849980,-500.0,0.00063013,120]
[358493010,1745209849990,-621.39169438,0.00063013,120]
[358493011,1745209849999,-500.0,0.00063013,120]
[358493012,1745209850011,-736.6,0.00063013,120]
[358493013,1745209850020,-151.0,0.00063013,120]
[358493014,1745209850030,-500.0,0.00063013,120]
[358493015,1745209850039,-151.0,0.00063013,120]
[358493016,1745209850048,-483.61157394,0.00063013,120]
[358493017,1745209850057,-500.0,0.00063013,120]